[Event "Early-Titled-Tuesday-Blitz-September-12-2023"]
[Site "Chess.com"]
[Date "2023.09.12"]
[Round "10"]
[White "allejam"]
[Black "Alexei_Gubajdullin"]
[Result "0-1"]
[WhiteElo "2435"]
[BlackElo "2613"]
[TimeControl "180+1"]
[EndTime "9:54:58 PDT"]
[Termination "Alexei_Gubajdullin won by checkmate"]

1. e4 {[%clk 0:02:54.4]} 1... g6 {[%clk 0:02:33.7]} 2. d4 {[%clk 0:02:51]} 2...
d6 {[%clk 0:02:33.2]} 3. Nf3 {[%clk 0:02:50.7]} 3... Bg7 {[%clk 0:02:32.7]} 4.
Bc4 {[%clk 0:02:50.8]} 4... Nf6 {[%clk 0:02:31.4]} 5. Nc3 {[%clk 0:02:51]} 5...
O-O {[%clk 0:02:31.4]} 6. O-O {[%clk 0:02:49.1]} 6... c6 {[%clk 0:02:31.4]} 7.
Bb3 {[%clk 0:02:47.4]} 7... d5 {[%clk 0:02:31.5]} 8. exd5 {[%clk 0:02:45.5]}
8... cxd5 {[%clk 0:02:31.4]} 9. Re1 {[%clk 0:02:45.5]} 9... Bg4 {[%clk
0:02:30.9]} 10. h3 {[%clk 0:02:45.6]} 10... Bxf3 {[%clk 0:02:30.9]} 11. Qxf3
{[%clk 0:02:46.5]} 11... e6 {[%clk 0:02:31]} 12. Bf4 {[%clk 0:02:43.3]} 12...
Nc6 {[%clk 0:02:29.6]} 13. Rad1 {[%clk 0:02:43.7]} 13... Qb6 {[%clk 0:02:26.6]}
14. Na4 {[%clk 0:02:35.8]} 14... Qa5 {[%clk 0:02:13.4]} 15. c3 {[%clk
0:02:18.7]} 15... Ne4 {[%clk 0:02:06.9]} 16. Bc2 {[%clk 0:01:29.8]} 16... f5
{[%clk 0:02:02.8]} 17. Qd3 {[%clk 0:01:24.2]} 17... Rad8 {[%clk 0:02:00.2]} 18.
f3 {[%clk 0:01:23.4]} 18... b5 {[%clk 0:02:00.1]} 19. b4 {[%clk 0:01:17.5]}
19... Qa6 {[%clk 0:01:54.7]} 20. fxe4 {[%clk 0:00:57.6]} 20... fxe4 {[%clk
0:01:53.5]} 21. Qf1 {[%clk 0:00:56.7]} 21... g5 {[%clk 0:01:48.5]} 22. Nc5
{[%clk 0:00:55.7]} 22... Qc8 {[%clk 0:01:47.6]} 23. Qxb5 {[%clk 0:00:35.1]}
23... gxf4 {[%clk 0:01:47.2]} 24. Rf1 {[%clk 0:00:17.4]} 24... f3 {[%clk
0:01:43.5]} 25. gxf3 {[%clk 0:00:16.8]} 25... e5 {[%clk 0:01:43.1]} 26. fxe4
{[%clk 0:00:11.6]} 26... Qxh3 {[%clk 0:01:29.1]} 27. Qxc6 {[%clk 0:00:11.4]}
27... Qg3+ {[%clk 0:01:24.3]} 28. Kh1 {[%clk 0:00:11.6]} 28... Qh3+ {[%clk
0:01:22.2]} 29. Kg1 {[%clk 0:00:11.8]} 29... Qg3+ {[%clk 0:01:06.2]} 30. Kh1
{[%clk 0:00:11.2]} 30... Qh4+ {[%clk 0:01:06.4]} 31. Kg1 {[%clk 0:00:11.2]}
31... Kh8 {[%clk 0:01:06.1]} 32. Ne6 {[%clk 0:00:10.1]} 32... Rg8 {[%clk
0:01:05]} 33. Nxd8 {[%clk 0:00:09.5]} 33... Bf6# {[%clk 0:01:02.6]} 0-1

[Event "Early-Titled-Tuesday-Blitz-September-12-2023"]
[Site "Chess.com"]
[Date "2023.09.12"]
[Round "10"]
[White "GMJustin"]
[Black "lrestevez"]
[Result "0-1"]
[WhiteElo "2238"]
[BlackElo "2145"]
[TimeControl "180+1"]
[EndTime "9:55:05 PDT"]
[Termination "lrestevez won on time"]

1. d4 {[%clk 0:02:47.4]} 1... Nf6 {[%clk 0:02:58.8]} 2. c4 {[%clk 0:02:45.2]}
2... e5 {[%clk 0:02:59]} 3. dxe5 {[%clk 0:02:43.5]} 3... Ng4 {[%clk 0:02:59.7]}
4. e3 {[%clk 0:02:41.3]} 4... Nxe5 {[%clk 0:02:58.9]} 5. f4 {[%clk 0:02:41.2]}
5... Ng6 {[%clk 0:02:58.2]} 6. h4 {[%clk 0:02:39.9]} 6... Nxh4 {[%clk
0:02:52.4]} 7. Qh5 {[%clk 0:01:55.8]} 7... Ng6 {[%clk 0:02:46.9]} 8. Nf3 {[%clk
0:01:51.5]} 8... d6 {[%clk 0:02:18.7]} 9. Bd3 {[%clk 0:01:32.8]} 9... Nd7 {[%clk
0:02:10.1]} 10. Nc3 {[%clk 0:01:09.8]} 10... Nf6 {[%clk 0:02:07.8]} 11. Qa5
{[%clk 0:00:53.7]} 11... c6 {[%clk 0:02:05]} 12. Qxd8+ {[%clk 0:00:42.3]} 12...
Kxd8 {[%clk 0:02:05.9]} 13. Ng5 {[%clk 0:00:42]} 13... Ke8 {[%clk 0:02:04.4]}
14. Bd2 {[%clk 0:00:33.6]} 14... Bg4 {[%clk 0:02:00.5]} 15. Kf2 {[%clk
0:00:18.5]} 15... h6 {[%clk 0:01:57.8]} 16. Nf3 {[%clk 0:00:13.5]} 16... Bxf3
{[%clk 0:01:55.4]} 17. gxf3 {[%clk 0:00:12.9]} 17... Rd8 {[%clk 0:01:50.7]} 18.
f5 {[%clk 0:00:08.4]} 18... Ne5 {[%clk 0:01:50.3]} 19. Be2 {[%clk 0:00:08.7]}
19... h5 {[%clk 0:01:31.1]} 20. e4 {[%clk 0:00:06]} 20... Be7 {[%clk 0:01:26.4]}
21. Be3 {[%clk 0:00:05.6]} 21... b6 {[%clk 0:01:25.7]} 22. Rad1 {[%clk
0:00:04.3]} 22... Kd7 {[%clk 0:01:25.6]} 23. b4 {[%clk 0:00:02.7]} 23... Kc7
{[%clk 0:01:25.3]} 24. b5 {[%clk 0:00:02.9]} 24... c5 {[%clk 0:01:22.5]} 25. Bg5
{[%clk 0:00:02.5]} 25... Ned7 {[%clk 0:01:20.2]} 26. Bh4 {[%clk 0:00:02]} 26...
Rde8 {[%clk 0:01:14.2]} 27. Rdg1 {[%clk 0:00:02]} 27... Rhg8 {[%clk 0:01:13.4]}
28. Kf1 {[%clk 0:00:01.9]} 28... g6 {[%clk 0:00:58.5]} 29. fxg6 {[%clk
0:00:01.4]} 29... Rxg6 {[%clk 0:00:55.1]} 30. Rxg6 {[%clk 0:00:01.4]} 30... fxg6
{[%clk 0:00:56]} 0-1

[Event "Early-Titled-Tuesday-Blitz-September-12-2023"]
[Site "Chess.com"]
[Date "2023.09.12"]
[Round "10"]
[White "AsselLesbekova"]
[Black "M_One1126"]
[Result "0-1"]
[WhiteElo "2361"]
[BlackElo "2574"]
[TimeControl "180+1"]
[EndTime "9:55:06 PDT"]
[Termination "M_One1126 won by resignation"]

1. e4 {[%clk 0:03:00.9]} 1... c5 {[%clk 0:02:59.7]} 2. Nf3 {[%clk 0:03:00.6]}
2... a6 {[%clk 0:03:00.1]} 3. c3 {[%clk 0:02:58.4]} 3... d5 {[%clk 0:03:00.3]}
4. exd5 {[%clk 0:02:58.2]} 4... Qxd5 {[%clk 0:03:01.2]} 5. d4 {[%clk 0:02:58.7]}
5... Nf6 {[%clk 0:03:01.8]} 6. Be2 {[%clk 0:02:54.9]} 6... Bf5 {[%clk
0:03:02.1]} 7. Be3 {[%clk 0:02:49.5]} 7... cxd4 {[%clk 0:03:01.7]} 8. Qxd4
{[%clk 0:02:46.9]} 8... Nc6 {[%clk 0:02:58.9]} 9. Qxd5 {[%clk 0:02:38.6]} 9...
Nxd5 {[%clk 0:02:59.8]} 10. Bd2 {[%clk 0:02:37]} 10... e5 {[%clk 0:02:53.5]} 11.
O-O {[%clk 0:02:35.2]} 11... f6 {[%clk 0:02:46.4]} 12. a3 {[%clk 0:02:34.2]}
12... Be7 {[%clk 0:02:40.4]} 13. c4 {[%clk 0:02:34.4]} 13... Nc7 {[%clk
0:02:40.3]} 14. Nc3 {[%clk 0:02:32.4]} 14... O-O-O {[%clk 0:02:38.6]} 15. Be3
{[%clk 0:02:26.7]} 15... g5 {[%clk 0:02:32.7]} 16. Bb6 {[%clk 0:02:25.5]} 16...
g4 {[%clk 0:02:24.1]} 17. Nh4 {[%clk 0:02:06.9]} 17... Be6 {[%clk 0:02:24]} 18.
Bxc7 {[%clk 0:02:07.1]} 18... Kxc7 {[%clk 0:02:23.3]} 19. Nd5+ {[%clk
0:02:06.8]} 19... Kb8 {[%clk 0:02:16.8]} 20. Ne3 {[%clk 0:01:57.5]} 20... Rhg8
{[%clk 0:02:10.6]} 21. Nhf5 {[%clk 0:01:49.9]} 21... Bc5 {[%clk 0:02:10.3]} 22.
Rad1 {[%clk 0:01:30.8]} 22... h5 {[%clk 0:02:05.1]} 23. b4 {[%clk 0:01:14.7]}
23... Bd4 {[%clk 0:01:46.6]} 24. b5 {[%clk 0:00:59.1]} 24... Na5 {[%clk
0:01:39.6]} 25. Nxd4 {[%clk 0:00:37.8]} 25... exd4 {[%clk 0:01:39.2]} 26. Nc2
{[%clk 0:00:31.8]} 26... Bxc4 {[%clk 0:01:37.2]} 27. Bxc4 {[%clk 0:00:30.3]}
27... Nxc4 {[%clk 0:01:38.1]} 28. Nxd4 {[%clk 0:00:27.7]} 28... Rd5 {[%clk
0:01:29.6]} 29. Nc2 {[%clk 0:00:17.4]} 29... Rxd1 {[%clk 0:01:26.8]} 30. Rxd1
{[%clk 0:00:17.1]} 30... axb5 {[%clk 0:01:27.4]} 31. Rd5 {[%clk 0:00:14.8]}
31... Re8 {[%clk 0:01:27.3]} 32. Kf1 {[%clk 0:00:14.3]} 32... Re5 {[%clk
0:01:23.5]} 33. Rxe5 {[%clk 0:00:10.8]} 33... fxe5 {[%clk 0:01:24.4]} 34. Ke2
{[%clk 0:00:10.8]} 34... Kc7 {[%clk 0:01:24.5]} 35. Kd3 {[%clk 0:00:10]} 35...
Kd6 {[%clk 0:01:24.9]} 36. a4 {[%clk 0:00:09.8]} 36... Nb2+ {[%clk 0:01:24.5]}
37. Ke4 {[%clk 0:00:08.4]} 37... bxa4 {[%clk 0:01:24.7]} 38. Na3 {[%clk
0:00:08]} 38... Kc5 {[%clk 0:01:23]} 39. f3 {[%clk 0:00:05.4]} 39... gxf3 {[%clk
0:01:21.7]} 40. gxf3 {[%clk 0:00:05.4]} 40... b5 {[%clk 0:01:22.1]} 41. Kxe5
{[%clk 0:00:05.6]} 41... Nc4+ {[%clk 0:01:22.3]} 42. Ke6 {[%clk 0:00:05.7]}
42... Nxa3 {[%clk 0:01:21.6]} 0-1

[Event "Early-Titled-Tuesday-Blitz-September-12-2023"]
[Site "Chess.com"]
[Date "2023.09.12"]
[Round "10"]
[White "Manukyan_Artak"]
[Black "twofoxniel"]
[Result "0-1"]
[WhiteElo "2512"]
[BlackElo "2627"]
[TimeControl "180+1"]
[EndTime "9:55:17 PDT"]
[Termination "twofoxniel won on time"]

1. e4 {[%clk 0:02:58.1]} 1... d5 {[%clk 0:02:59.1]} 2. exd5 {[%clk 0:02:58.1]}
2... Nf6 {[%clk 0:02:59.2]} 3. Nc3 {[%clk 0:02:58.5]} 3... Nxd5 {[%clk
0:02:58.6]} 4. Bc4 {[%clk 0:02:59.1]} 4... Nb6 {[%clk 0:02:58.5]} 5. Bb3 {[%clk
0:02:58.9]} 5... Nc6 {[%clk 0:02:59.2]} 6. Qf3 {[%clk 0:02:58.1]} 6... e6 {[%clk
0:02:54]} 7. Nge2 {[%clk 0:02:58]} 7... Be7 {[%clk 0:02:54.5]} 8. d4 {[%clk
0:02:56.5]} 8... Nxd4 {[%clk 0:02:46.6]} 9. Nxd4 {[%clk 0:02:56.2]} 9... Qxd4
{[%clk 0:02:47.2]} 10. Be3 {[%clk 0:02:56.7]} 10... Qf6 {[%clk 0:02:46.1]} 11.
Qh5 {[%clk 0:02:54.5]} 11... Qg6 {[%clk 0:02:45.1]} 12. Qf3 {[%clk 0:02:46.9]}
12... O-O {[%clk 0:02:41.2]} 13. O-O-O {[%clk 0:02:46]} 13... c6 {[%clk
0:02:41.6]} 14. h4 {[%clk 0:02:43.7]} 14... e5 {[%clk 0:02:36.4]} 15. h5 {[%clk
0:02:42.6]} 15... Qg4 {[%clk 0:02:36.5]} 16. Qxg4 {[%clk 0:02:41.3]} 16... Bxg4
{[%clk 0:02:36.2]} 17. f3 {[%clk 0:02:42.2]} 17... Bf5 {[%clk 0:02:30.9]} 18. g4
{[%clk 0:02:41.7]} 18... Be6 {[%clk 0:02:31.2]} 19. h6 {[%clk 0:02:07.9]} 19...
g6 {[%clk 0:02:26.7]} 20. Rhe1 {[%clk 0:02:07.8]} 20... Bxb3 {[%clk 0:02:25.2]}
21. axb3 {[%clk 0:02:07]} 21... Rad8 {[%clk 0:02:17.1]} 22. Bxb6 {[%clk
0:01:37.3]} 22... axb6 {[%clk 0:02:03.4]} 23. Rxe5 {[%clk 0:01:27.1]} 23... Bf6
{[%clk 0:02:03.7]} 24. Rxd8 {[%clk 0:01:20.4]} 24... Rxd8 {[%clk 0:02:03.4]} 25.
Re4 {[%clk 0:01:18]} 25... Bg5+ {[%clk 0:02:03.8]} 26. f4 {[%clk 0:01:09.2]}
26... Bxh6 {[%clk 0:02:03.9]} 27. Ne2 {[%clk 0:01:09.4]} 27... Kf8 {[%clk
0:01:59.6]} 28. b4 {[%clk 0:00:52.7]} 28... Re8 {[%clk 0:01:59.4]} 29. Rxe8+
{[%clk 0:00:48.3]} 29... Kxe8 {[%clk 0:02:00.3]} 30. c3 {[%clk 0:00:49]} 30...
Ke7 {[%clk 0:01:58.3]} 31. Kd2 {[%clk 0:00:45.4]} 31... f6 {[%clk 0:01:57.9]}
32. Kd3 {[%clk 0:00:40.8]} 32... Bg7 {[%clk 0:01:56.3]} 33. b5 {[%clk
0:00:36.4]} 33... Kd6 {[%clk 0:01:46.7]} 34. b4 {[%clk 0:00:28.6]} 34... f5
{[%clk 0:01:44.1]} 35. bxc6 {[%clk 0:00:23.9]} 35... bxc6 {[%clk 0:01:44.1]} 36.
g5 {[%clk 0:00:21.4]} 36... h6 {[%clk 0:01:42.1]} 37. gxh6 {[%clk 0:00:21.2]}
37... Bxh6 {[%clk 0:01:42.4]} 38. Ke3 {[%clk 0:00:21.3]} 38... Kd5 {[%clk
0:01:41.2]} 39. Nd4 {[%clk 0:00:17.8]} 39... Bg7 {[%clk 0:01:37.3]} 40. Nf3
{[%clk 0:00:11.4]} 40... Bxc3 {[%clk 0:01:32.9]} 41. Nh4 {[%clk 0:00:10.7]}
41... Bxb4 {[%clk 0:01:30.5]} 42. Nxg6 {[%clk 0:00:11.4]} 42... Bd6 {[%clk
0:01:30.5]} 43. Nh4 {[%clk 0:00:08.7]} 43... Ke6 {[%clk 0:01:30.7]} 44. Nf3
{[%clk 0:00:09.5]} 44... c5 {[%clk 0:01:28.3]} 45. Ng5+ {[%clk 0:00:06.5]} 45...
Kd5 {[%clk 0:01:28.2]} 46. Nf3 {[%clk 0:00:04.8]} 46... c4 {[%clk 0:01:27.7]}
47. Kd2 {[%clk 0:00:02.4]} 47... b5 {[%clk 0:01:26.3]} 0-1

[Event "Early-Titled-Tuesday-Blitz-September-12-2023"]
[Site "Chess.com"]
[Date "2023.09.12"]
[Round "10"]
[White "Alphafischer2019"]
[Black "Witty_Alien"]
[Result "1-0"]
[WhiteElo "2550"]
[BlackElo "2210"]
[TimeControl "180+1"]
[EndTime "9:55:22 PDT"]
[Termination "Alphafischer2019 won by resignation"]

1. Nf3 {[%clk 0:03:00.9]} 1... g5 {[%clk 0:02:58]} 2. Nxg5 {[%clk 0:02:59.1]}
2... e5 {[%clk 0:02:58.5]} 3. Nf3 {[%clk 0:02:59.5]} 3... e4 {[%clk 0:02:58.3]}
4. Nd4 {[%clk 0:03:00]} 4... c5 {[%clk 0:02:58.9]} 5. Nb3 {[%clk 0:02:59.9]}
5... a5 {[%clk 0:02:58.2]} 6. a4 {[%clk 0:02:54.7]} 6... Ra6 {[%clk 0:02:56.4]}
7. d4 {[%clk 0:02:49.6]} 7... c4 {[%clk 0:02:55.1]} 8. Nc5 {[%clk 0:02:49.5]}
8... Rg6 {[%clk 0:02:27.9]} 9. Bf4 {[%clk 0:02:43.7]} 9... Nc6 {[%clk
0:02:01.4]} 10. Nc3 {[%clk 0:02:42.8]} 10... d5 {[%clk 0:01:53.4]} 11. Nb5
{[%clk 0:02:42.4]} 11... Bg7 {[%clk 0:01:45.6]} 12. e3 {[%clk 0:02:38.3]} 12...
Bg4 {[%clk 0:01:38.2]} 13. Qd2 {[%clk 0:02:36.4]} 13... f5 {[%clk 0:01:16]} 14.
b3 {[%clk 0:02:32]} 14... b6 {[%clk 0:01:06.3]} 15. Nb7 {[%clk 0:02:18.9]} 15...
Qh4 {[%clk 0:00:38.8]} 16. bxc4 {[%clk 0:02:12.1]} 16... Nge7 {[%clk 0:00:29.1]}
17. N7d6+ {[%clk 0:02:10.9]} 17... Kf8 {[%clk 0:00:29.1]} 18. Bg3 {[%clk
0:01:59.3]} 18... Qh5 {[%clk 0:00:24.5]} 19. cxd5 {[%clk 0:01:59.1]} 19... Nxd5
{[%clk 0:00:23.7]} 20. Bc4 {[%clk 0:01:59.7]} 20... Ndb4 {[%clk 0:00:15.1]} 21.
Nc7 {[%clk 0:01:45.9]} 21... f4 {[%clk 0:00:12.9]} 22. Bxf4 {[%clk 0:01:45.8]}
22... Bf3 {[%clk 0:00:12.4]} 23. gxf3 {[%clk 0:01:34.1]} 23... Qxf3 {[%clk
0:00:13.3]} 24. Rf1 {[%clk 0:01:31.4]} 24... Bxd4 {[%clk 0:00:13.9]} 25. Be2
{[%clk 0:01:21.1]} 25... Qh3 {[%clk 0:00:03.8]} 26. c3 {[%clk 0:01:13.1]} 26...
Qd7 {[%clk 0:00:01.6]} 27. cxd4 {[%clk 0:01:09.2]} 27... Rxd6 {[%clk 0:00:01.9]}
28. Bxd6+ {[%clk 0:01:06.5]} 28... Qxd6 {[%clk 0:00:02.8]} 29. Nb5 {[%clk
0:01:07.1]} 29... Qg6 {[%clk 0:00:02.4]} 30. Rc1 {[%clk 0:01:05.7]} 30... Kg7
{[%clk 0:00:02.4]} 31. d5 {[%clk 0:01:06.1]} 31... Ne5 {[%clk 0:00:02.5]} 32.
Rc7+ {[%clk 0:01:06.4]} 32... Kh6 {[%clk 0:00:02.4]} 33. Qd4 {[%clk 0:00:59.3]}
33... Nbd3+ {[%clk 0:00:02.8]} 34. Kd2 {[%clk 0:00:58.8]} 34... Rd8 {[%clk
0:00:01.7]} 35. d6 {[%clk 0:00:55.7]} 35... Nf3+ {[%clk 0:00:01.5]} 36. Bxf3
{[%clk 0:00:56]} 36... exf3 {[%clk 0:00:02.1]} 37. Qxd3 {[%clk 0:00:56.5]} 37...
Rxd6 {[%clk 0:00:02.1]} 38. Nxd6 {[%clk 0:00:56.3]} 38... Kh5 {[%clk 0:00:02.5]}
39. Qxg6+ {[%clk 0:00:56.4]} 39... hxg6 {[%clk 0:00:03.2]} 40. Rg1 {[%clk
0:00:54.7]} 1-0

[Event "Early-Titled-Tuesday-Blitz-September-12-2023"]
[Site "Chess.com"]
[Date "2023.09.12"]
[Round "10"]
[White "jaskol95"]
[Black "Gogolev_Artemy"]
[Result "0-1"]
[WhiteElo "2524"]
[BlackElo "2407"]
[TimeControl "180+1"]
[EndTime "9:55:23 PDT"]
[Termination "Gogolev_Artemy won by resignation"]

1. d4 {[%clk 0:03:00.9]} 1... d5 {[%clk 0:02:59]} 2. Nc3 {[%clk 0:02:59.2]} 2...
Nf6 {[%clk 0:02:52.9]} 3. Bf4 {[%clk 0:02:59.3]} 3... a6 {[%clk 0:02:53.2]} 4.
e3 {[%clk 0:02:55.3]} 4... e6 {[%clk 0:02:52.9]} 5. a3 {[%clk 0:02:55.3]} 5...
c5 {[%clk 0:02:47.3]} 6. Nf3 {[%clk 0:02:55.8]} 6... Nc6 {[%clk 0:02:44.6]} 7.
Ne5 {[%clk 0:02:48.7]} 7... Bd7 {[%clk 0:02:33.6]} 8. Be2 {[%clk 0:02:45.1]}
8... cxd4 {[%clk 0:02:32.4]} 9. exd4 {[%clk 0:02:45.6]} 9... Qb6 {[%clk
0:02:26.3]} 10. Nxc6 {[%clk 0:02:33.3]} 10... Bxc6 {[%clk 0:02:27.2]} 11. Rb1
{[%clk 0:02:27.1]} 11... Be7 {[%clk 0:02:19.5]} 12. O-O {[%clk 0:02:27]} 12...
O-O {[%clk 0:02:19.4]} 13. Bd3 {[%clk 0:02:26]} 13... Kh8 {[%clk 0:02:08.3]} 14.
Be3 {[%clk 0:02:14.5]} 14... Rac8 {[%clk 0:01:45.6]} 15. Qf3 {[%clk 0:02:14.1]}
15... Qd8 {[%clk 0:01:39.2]} 16. Qh3 {[%clk 0:02:13.4]} 16... g6 {[%clk
0:01:35.8]} 17. f4 {[%clk 0:02:06.4]} 17... Ne4 {[%clk 0:01:25.3]} 18. Nxe4
{[%clk 0:01:55.9]} 18... dxe4 {[%clk 0:01:26.2]} 19. Be2 {[%clk 0:01:55.2]}
19... f5 {[%clk 0:01:25.8]} 20. c3 {[%clk 0:01:54.4]} 20... Bd5 {[%clk 0:01:18]}
21. Rbc1 {[%clk 0:01:50]} 21... b5 {[%clk 0:01:17]} 22. a4 {[%clk 0:01:47.8]}
22... bxa4 {[%clk 0:01:06]} 23. Bxa6 {[%clk 0:01:43.4]} 23... Rb8 {[%clk
0:01:05.8]} 24. c4 {[%clk 0:01:43.4]} 24... Bc6 {[%clk 0:01:04.2]} 25. Rfd1
{[%clk 0:01:38.3]} 25... Qa5 {[%clk 0:00:59.4]} 26. d5 {[%clk 0:01:17.4]} 26...
Qxa6 {[%clk 0:00:53.5]} 27. dxc6 {[%clk 0:01:17.6]} 27... Qxc6 {[%clk
0:00:54.4]} 28. c5 {[%clk 0:01:12.4]} 28... Bf6 {[%clk 0:00:52.2]} 29. Rd6
{[%clk 0:01:10.6]} 29... Qb5 {[%clk 0:00:51.6]} 30. Rxe6 {[%clk 0:01:07.4]}
30... Qxb2 {[%clk 0:00:33.6]} 31. Rd1 {[%clk 0:01:01.5]} 31... Qe2 {[%clk
0:00:20.6]} 32. Red6 {[%clk 0:00:48.4]} 32... Rb3 {[%clk 0:00:19.8]} 33. Qh6
{[%clk 0:00:30.6]} 33... Bg7 {[%clk 0:00:17.5]} 34. Kh1 {[%clk 0:00:31.3]} 34...
Bxh6 {[%clk 0:00:15.6]} 0-1

[Event "Early-Titled-Tuesday-Blitz-September-12-2023"]
[Site "Chess.com"]
[Date "2023.09.12"]
[Round "10"]
[White "cukin84"]
[Black "Good_Knight_Kiss"]
[Result "0-1"]
[WhiteElo "2224"]
[BlackElo "2398"]
[TimeControl "180+1"]
[EndTime "9:55:24 PDT"]
[Termination "Good_Knight_Kiss won by resignation"]

1. e4 {[%clk 0:03:00.9]} 1... c5 {[%clk 0:02:59.3]} 2. Nc3 {[%clk 0:03:00.2]}
2... a6 {[%clk 0:02:56.9]} 3. d3 {[%clk 0:02:59.5]} 3... e6 {[%clk 0:02:52.4]}
4. f4 {[%clk 0:02:59.3]} 4... b5 {[%clk 0:02:50.8]} 5. Nf3 {[%clk 0:02:57.2]}
5... Bb7 {[%clk 0:02:49.2]} 6. a3 {[%clk 0:02:57]} 6... Nf6 {[%clk 0:02:48]} 7.
Be2 {[%clk 0:02:55.4]} 7... d5 {[%clk 0:02:47.9]} 8. e5 {[%clk 0:02:55.3]} 8...
Nfd7 {[%clk 0:02:47.4]} 9. O-O {[%clk 0:02:54.3]} 9... Nc6 {[%clk 0:02:47.6]}
10. f5 {[%clk 0:02:45.5]} 10... Be7 {[%clk 0:02:40.2]} 11. fxe6 {[%clk
0:02:43.5]} 11... fxe6 {[%clk 0:02:41.1]} 12. d4 {[%clk 0:02:33]} 12... cxd4
{[%clk 0:02:38.9]} 13. Nxd4 {[%clk 0:02:32.2]} 13... Nxd4 {[%clk 0:02:38.1]} 14.
Kh1 {[%clk 0:02:25.4]} 14... Nxe5 {[%clk 0:02:19.6]} 15. Qxd4 {[%clk 0:02:22.9]}
15... Bf6 {[%clk 0:02:11.9]} 16. Qc5 {[%clk 0:02:14.2]} 16... Rc8 {[%clk
0:02:02.8]} 17. Qb4 {[%clk 0:02:13.2]} 17... Qe7 {[%clk 0:01:58]} 18. Qxe7+
{[%clk 0:02:03.6]} 18... Kxe7 {[%clk 0:01:54.1]} 19. Bf4 {[%clk 0:01:59.2]}
19... Nc4 {[%clk 0:01:50.9]} 20. Bxc4 {[%clk 0:01:49.2]} 20... Rxc4 {[%clk
0:01:46.6]} 21. Na2 {[%clk 0:01:41.1]} 21... Bxb2 {[%clk 0:01:27.4]} 22. Rae1
{[%clk 0:01:39.2]} 22... a5 {[%clk 0:01:11]} 23. Bg5+ {[%clk 0:01:38.2]} 23...
Bf6 {[%clk 0:01:10]} 24. Bxf6+ {[%clk 0:01:28.8]} 24... gxf6 {[%clk 0:01:09.8]}
25. c3 {[%clk 0:01:29.3]} 25... Rg8 {[%clk 0:01:01.9]} 26. Rf2 {[%clk
0:01:24.9]} 26... h5 {[%clk 0:00:53.7]} 27. h3 {[%clk 0:01:19.5]} 27... Rg3
{[%clk 0:00:48.6]} 28. Kh2 {[%clk 0:01:19.1]} 28... h4 {[%clk 0:00:48.1]} 29.
Rb2 {[%clk 0:01:18.2]} 29... Bc6 {[%clk 0:00:47.1]} 30. Rbe2 {[%clk 0:01:14.3]}
30... e5 {[%clk 0:00:42.3]} 31. Re3 {[%clk 0:01:11.1]} 31... Rxe3 {[%clk
0:00:39.7]} 32. Rxe3 {[%clk 0:01:11.2]} 32... Ra4 {[%clk 0:00:39.6]} 33. Nc1
{[%clk 0:01:10]} 33... Rxa3 {[%clk 0:00:38.4]} 34. Ne2 {[%clk 0:01:01.2]} 34...
d4 {[%clk 0:00:34.5]} 35. Rd3 {[%clk 0:00:58.6]} 35... b4 {[%clk 0:00:29.2]} 36.
Rd1 {[%clk 0:00:50.4]} 36... Ra2 {[%clk 0:00:23.3]} 37. cxd4 {[%clk 0:00:40.4]}
37... Rxe2 {[%clk 0:00:22.3]} 38. d5 {[%clk 0:00:40.8]} 38... Bb7 {[%clk
0:00:20.6]} 39. d6+ {[%clk 0:00:40.3]} 39... Kd7 {[%clk 0:00:20.8]} 40. Kg1
{[%clk 0:00:38.1]} 40... Rxg2+ {[%clk 0:00:20.4]} 41. Kf1 {[%clk 0:00:38.4]}
41... Rc2 {[%clk 0:00:19]} 0-1

[Event "Early-Titled-Tuesday-Blitz-September-12-2023"]
[Site "Chess.com"]
[Date "2023.09.12"]
[Round "10"]
[White "Alex_Banzea"]
[Black "Aash20"]
[Result "0-1"]
[WhiteElo "2624"]
[BlackElo "2532"]
[TimeControl "180+1"]
[EndTime "9:55:26 PDT"]
[Termination "Aash20 won on time"]

1. d4 {[%clk 0:03:00.9]} 1... d5 {[%clk 0:02:59.3]} 2. Nc3 {[%clk 0:03:00.2]}
2... Nf6 {[%clk 0:02:58.3]} 3. Bf4 {[%clk 0:03:00]} 3... c6 {[%clk 0:02:56.4]}
4. e3 {[%clk 0:03:00.2]} 4... Bg4 {[%clk 0:02:50.4]} 5. f3 {[%clk 0:02:59.5]}
5... Bh5 {[%clk 0:02:50]} 6. g4 {[%clk 0:03:00.2]} 6... Bg6 {[%clk 0:02:49.8]}
7. h4 {[%clk 0:03:01.1]} 7... h5 {[%clk 0:02:49.3]} 8. g5 {[%clk 0:03:01.7]}
8... Nfd7 {[%clk 0:02:48.7]} 9. Bd3 {[%clk 0:03:02.3]} 9... Bxd3 {[%clk
0:02:47]} 10. Qxd3 {[%clk 0:03:03.2]} 10... g6 {[%clk 0:02:47.3]} 11. e4 {[%clk
0:03:03.7]} 11... dxe4 {[%clk 0:02:46.6]} 12. fxe4 {[%clk 0:03:04.6]} 12... Bg7
{[%clk 0:02:46.7]} 13. Nf3 {[%clk 0:03:04.6]} 13... Na6 {[%clk 0:02:40.2]} 14.
O-O-O {[%clk 0:03:01.8]} 14... Qa5 {[%clk 0:02:39.3]} 15. Kb1 {[%clk 0:02:32.4]}
15... Nb6 {[%clk 0:02:36.2]} 16. a3 {[%clk 0:02:28.8]} 16... Rd8 {[%clk
0:02:28.7]} 17. Bd2 {[%clk 0:02:11.1]} 17... Na4 {[%clk 0:02:06.3]} 18. Nd5
{[%clk 0:01:52.2]} 18... Rxd5 {[%clk 0:02:05.2]} 19. Bxa5 {[%clk 0:01:45.6]}
19... Rxa5 {[%clk 0:02:06.1]} 20. Qb3 {[%clk 0:01:16.9]} 20... Nb6 {[%clk
0:02:01.1]} 21. c4 {[%clk 0:01:13.8]} 21... c5 {[%clk 0:01:52.4]} 22. d5 {[%clk
0:00:45.5]} 22... O-O {[%clk 0:01:49.4]} 23. e5 {[%clk 0:00:43.6]} 23... Ra4
{[%clk 0:01:42.2]} 24. Rc1 {[%clk 0:00:36.8]} 24... Rd8 {[%clk 0:01:39.4]} 25.
Rhd1 {[%clk 0:00:32.5]} 25... Nc7 {[%clk 0:01:35.5]} 26. Qd3 {[%clk 0:00:24.7]}
26... e6 {[%clk 0:01:29.4]} 27. d6 {[%clk 0:00:23.9]} 27... Ne8 {[%clk
0:01:28.5]} 28. Ka2 {[%clk 0:00:19]} 28... Bf8 {[%clk 0:01:25.4]} 29. b3 {[%clk
0:00:18.7]} 29... Ra6 {[%clk 0:01:24.8]} 30. Nd2 {[%clk 0:00:17.5]} 30... Nd7
{[%clk 0:01:23.1]} 31. Qc3 {[%clk 0:00:14.4]} 31... Bg7 {[%clk 0:01:21.9]} 32.
Nf3 {[%clk 0:00:12.6]} 32... Nxd6 {[%clk 0:01:21.3]} 33. Qc2 {[%clk 0:00:08.3]}
33... Nf5 {[%clk 0:01:20.8]} 34. Rd3 {[%clk 0:00:07.3]} 34... Rc6 {[%clk
0:01:17.2]} 35. Rcd1 {[%clk 0:00:07.8]} 35... Rc7 {[%clk 0:01:17.4]} 36. Qd2
{[%clk 0:00:08.1]} 36... Nd4 {[%clk 0:01:11.3]} 37. Nxd4 {[%clk 0:00:07.5]}
37... cxd4 {[%clk 0:01:11.2]} 38. Rxd4 {[%clk 0:00:08.4]} 38... Bxe5 {[%clk
0:01:07.5]} 39. Rd3 {[%clk 0:00:03.5]} 39... a6 {[%clk 0:01:03.2]} 40. Qf2
{[%clk 0:00:03.4]} 40... b5 {[%clk 0:00:58.9]} 41. Rf1 {[%clk 0:00:02.1]} 41...
Rf8 {[%clk 0:00:58.4]} 0-1